bitfinex/quotes_BTCUSD_20250713
["timestamp","ask_amount","ask_price","bid_price","bid_amount"]
[1752441293896,0.74860198,118740.0,118730.0,0.71211]
[1752441294131,1.08860198,118740.0,118730.0,0.71211]
[1752441294615,0.82593778,118740.0,118730.0,0.71211]
[1752441295050,1.06390667,118740.0,118730.0,0.71211]
[1752441295909,0.72390667,118740.0,118730.0,0.71211]
[1752441296230,1.06390667,118740.0,118730.0,0.71211]
[1752441297387,0.82593778,118740.0,118730.0,0.79753993]
[1752441297596,0.35,118740.0,118730.0,0.79753993]
[1752441297821,0.82593778,118740.0,118730.0,0.79753993]
[1752441298685,0.82193778,118740.0,118730.0,0.79753993]
[1752441298916,0.81593778,118740.0,118730.0,0.79753993]
[1752441299129,0.81893778,118740.0,118730.0,0.79753993]
[1752441299652,0.82293778,118740.0,118730.0,0.79753993]
[1752441300886,1.06090667,118740.0,118730.0,0.77964993]
[1752441301130,1.06090667,118740.0,118730.0,0.79514993]
[1752441302161,1.06090667,118740.0,118730.0,0.77964993]
[1752441306941,1.06090667,118740.0,118730.0,0.76384993]
[1752441307366,1.06090667,118740.0,118730.0,0.67842]
[1752441307611,1.06597667,118740.0,118730.0,0.67842]
[1752441309516,1.06090667,118740.0,118730.0,0.67842]
[1752441314714,1.06395667,118740.0,118730.0,0.67842]
[1752441317920,1.06597667,118740.0,118730.0,0.67842]
[1752441320578,1.08227667,118740.0,118730.0,0.67842]
[1752441322352,1.06597667,118740.0,118730.0,0.67842]
[1752441324177,1.08207667,118740.0,118730.0,0.67842]
[1752441325431,1.08207667,118740.0,118730.0,0.67644]
[1752441326084,1.08207667,118740.0,118730.0,0.6786]
[1752441328713,1.81138334,118740.0,118730.0,0.80396]
[1752441330538,1.10576256,118740.0,118730.0,0.80396]
[1752441331973,1.09747667,118740.0,118730.0,0.80396]
[1752441333118,1.81138334,118740.0,118730.0,0.80396]
[1752441339772,1.81964121,118740.0,118730.0,0.80396]
[1752441346275,1.81138334,118740.0,118730.0,0.80396]
[1752441348078,1.81998747,118740.0,118730.0,0.80396]
[1752441348717,1.1060808,118740.0,118730.0,0.80396]
[1752441352009,1.09747667,118740.0,118730.0,0.80396]
[1752441352880,0.82293778,118740.0,118730.0,0.80596]
[1752441353103,0.82293778,118740.0,118730.0,0.82206]
[1752441353283,1.06090667,118740.0,118730.0,0.82206]
[1752441353898,1.06090667,118740.0,118730.0,0.83706]
[1752441354640,0.82293778,118740.0,118730.0,0.83706]
[1752441354857,0.82293778,118740.0,118730.0,0.83885]
[1752441357359,0.82293778,118740.0,118730.0,0.92427993]
[1752441357574,0.83139511,118740.0,118730.0,0.92427993]
[1752441357792,0.49139511,118740.0,118730.0,0.92427993]
[1752441358012,0.83139511,118740.0,118730.0,0.92427993]
[1752441358472,0.35545733,118740.0,118730.0,0.92427993]
[1752441358682,0.82293778,118740.0,118730.0,0.92427993]
[1752441359144,0.83138837,118740.0,118730.0,0.92427993]
[1752441359602,0.82738837,118740.0,118730.0,0.92427993]
[1752441359823,0.57896889,118740.0,118730.0,0.92427993]
[1752441360073,0.81693778,118740.0,118730.0,0.92427993]
[1752441360196,0.57996889,118740.0,118730.0,0.92427993]
[1752441360656,0.23996889,118740.0,118730.0,0.92427993]
[1752441362716,0.002,118740.0,118730.0,0.92427993]
[1752441362939,0.002,118740.0,118730.0,1.16224882]
[1752441363442,0.002,118740.0,118730.0,0.92427993]
[1752441363690,0.001,118740.0,118730.0,0.92427993]
[1752441363910,0.001,118740.0,118730.0,1.16224882]
[1752441364362,0.001,118740.0,118730.0,1.16324882]
[1752441364583,0.23796889,118750.0,118730.0,1.15677024]
[1752441364832,0.57801892,118750.0,118740.0,0.37499537]
[1752441365033,0.57801892,118750.0,118740.0,0.37664993]
[1752441365251,0.34005003,118750.0,118740.0,0.81839993]
[1752441365468,0.57801892,118750.0,118740.0,0.81839993]
[1752441365686,5.003e-05,118750.0,118740.0,0.81839993]
[1752441365940,5.003e-05,118750.0,118740.0,1.05636882]
[1752441366802,5.003e-05,118750.0,118740.0,0.95148882]
[1752441367024,5.003e-05,118750.0,118740.0,1.04507276]
[1752441367259,0.342,118770.0,118740.0,1.01277276]
[1752441367476,0.34205003,118770.0,118760.0,0.08542993]
[1752441367695,0.00205003,118770.0,118760.0,0.37481993]
[1752441367909,0.00205003,118770.0,118760.0,0.71162993]
[1752441368121,0.00205003,118770.0,118760.0,0.71341993]
[1752441369175,0.00405003,118770.0,118760.0,0.71341993]
[1752441369838,0.00705003,118770.0,118760.0,0.71341993]
[1752441370736,0.00705003,118770.0,118760.0,1.03043191]
[1752441371000,0.002,118790.0,118780.0,0.0159]
[1752441371209,0.34205003,118790.0,118780.0,0.37656993]
[1752441371419,0.34205003,118790.0,118780.0,0.71332993]
[1752441371841,0.65906201,118790.0,118780.0,0.71332993]
[1752441372289,0.66006201,118790.0,118780.0,0.71332993]
[1752441373294,0.32006201,118790.0,118780.0,0.71332993]
[1752441374321,0.32106201,118790.0,118780.0,0.71332993]
[1752441375139,0.32106201,118790.0,118780.0,0.81820993]
[1752441375344,0.32106201,118790.0,118780.0,1.01988993]
[1752441375751,0.00405003,118790.0,118780.0,1.01988993]
[1752441375987,0.32106201,118790.0,118780.0,1.01988993]
[1752441376813,0.32106201,118790.0,118780.0,1.01809993]
[1752441377016,0.66106201,118790.0,118780.0,0.98579993]
[1752441379425,0.66106201,118790.0,118780.0,0.98583993]
[1752441380886,0.66106201,118790.0,118780.0,0.67927993]
[1752441382244,0.66317201,118790.0,118780.0,0.67927993]
[1752441382489,0.66317201,118790.0,118780.0,0.67722993]
[1752441382490,0.69765201,118790.0,118780.0,0.67722993]
[1752441385354,0.69765201,118790.0,118780.0,0.98370993]
[1752441389398,0.38064003,118790.0,118780.0,0.98370993]
[1752441389625,0.69765201,118790.0,118780.0,0.98370993]
[1752441401579,0.38064003,118790.0,118780.0,0.98370993]
[1752441401784,0.69765201,118790.0,118780.0,0.98370993]
[1752441414319,0.69765201,118790.0,118780.0,0.89828]
[1752441415205,0.85628737,118790.0,118780.0,0.89828]
[1752441415723,1.09411104,118790.0,118780.0,0.89828]
[1752441416118,0.85628737,118790.0,118780.0,0.89828]
[1752441417100,0.69774159,118790.0,118780.0,0.89828]
[1752441420685,1.01484315,118790.0,118780.0,0.69664]
[1752441420930,1.14005193,118790.0,118780.0,0.89828]
[1752441421183,1.19052193,118790.0,118780.0,0.8982]
[1752441421919,1.20852038,118790.0,118780.0,0.8982]
[1752441422161,1.20752038,118790.0,118780.0,0.88979586]
[1752441422373,1.20652038,118790.0,118780.0,0.88139172]
[1752441422836,1.20752038,118790.0,118780.0,0.87298758]
[1752441423301,1.20852038,118790.0,118780.0,0.86458344]
[1752441423522,1.21052038,118790.0,118780.0,0.86458344]
[1752441424399,1.21052038,118790.0,118780.0,0.56144]
[1752441427432,1.19252193,118790.0,118780.0,0.56144]
[1752441431673,1.14205193,118790.0,118780.0,0.56144]
[1752441432556,0.35454085,118780.0,118750.0,0.06721277]
[1752441432769,0.97420312,118760.0,118750.0,0.06721277]
[1752441432995,0.97420312,118760.0,118750.0,0.27104277]
[1752441433854,0.97420312,118760.0,118750.0,0.52600277]
[1752441434271,0.97420312,118760.0,118750.0,0.52700277]
[1752441434829,0.97420312,118760.0,118750.0,0.52900277]
[1752441435500,0.97420312,118760.0,118750.0,0.52800277]
[1752441435723,0.97420312,118760.0,118750.0,0.52900277]
[1752441435969,0.97420312,118760.0,118750.0,0.53100277]
[1752441436202,0.93120312,118760.0,118750.0,0.53100277]
[1752441439197,0.65710156,118760.0,118750.0,0.54809277]
[1752441439400,0.65710156,118760.0,118750.0,0.6489227]
[1752441441091,0.34,118760.0,118750.0,0.6489227]
[1752441443178,0.297,118760.0,118750.0,0.6489227]
[1752441443403,0.00205003,118790.0,118750.0,0.6182227]
[1752441443612,0.31710156,118780.0,118770.0,0.0311]
[1752441443822,0.31710156,118780.0,118770.0,0.12042993]
[1752441444834,0.31810156,118780.0,118770.0,0.12042993]
[1752441445054,0.31810156,118780.0,118770.0,0.12253483]
[1752441445309,0.65810156,118780.0,118770.0,0.12253483]
[1752441445662,0.65810156,118780.0,118770.0,0.12074483]
[1752441445868,0.341,118780.0,118770.0,0.12074483]
[1752441446101,0.65810156,118780.0,118770.0,0.12074483]
[1752441447302,0.65810156,118780.0,118770.0,0.10343993]
[1752441447511,0.65810156,118780.0,118770.0,0.10554483]
[1752441449022,0.65810156,118780.0,118770.0,0.10343993]
[1752441449802,0.65810156,118780.0,118770.0,0.10347993]
[1752441453145,0.65810156,118780.0,118770.0,0.12088483]
[1752441453568,0.65810156,118780.0,118770.0,0.22576483]
[1752441453780,0.65810156,118780.0,118770.0,0.22365993]
[1752441455517,0.65810156,118780.0,118770.0,0.20835993]
[1752441455745,0.65810156,118780.0,118770.0,0.19245993]
[1752441461558,0.66128156,118780.0,118770.0,0.19245993]
[1752441462339,0.66339156,118780.0,118770.0,0.19245993]
[1752441462754,0.67989156,118780.0,118770.0,0.19245993]
[1752441462985,0.67989156,118780.0,118770.0,0.39413993]
[1752441463185,0.69499156,118780.0,118770.0,0.39202993]
[1752441464379,0.67989156,118780.0,118770.0,0.39202993]
[1752441464587,0.67989156,118780.0,118770.0,0.39401993]
[1752441466095,0.66339156,118780.0,118770.0,0.39401993]
[1752441467949,0.67939156,118780.0,118770.0,0.39401993]
[1752441468776,0.69529156,118780.0,118770.0,0.39401993]
[1752441469417,0.69529156,118780.0,118770.0,0.39202993]
[1752441473121,1.09170847,118780.0,118770.0,0.39202993]
[1752441476296,1.10004502,118780.0,118770.0,0.39202993]
[1752441482522,1.08414502,118780.0,118770.0,0.39202993]
[1752441482746,1.06814502,118780.0,118770.0,0.39411993]
[1752441483158,0.83030553,118780.0,118770.0,0.39411993]
[1752441483352,0.34933655,118780.0,118770.0,0.40981993]
[1752441483575,0.82501553,118780.0,118770.0,0.42501993]
[1752441484634,0.34933655,118780.0,118770.0,0.4940227]
[1752441484874,0.58717604,118780.0,118770.0,0.4940227]
[1752441485503,0.82501553,118780.0,118770.0,0.4940227]
[1752441487367,0.82501553,118780.0,118770.0,0.4922327]
[1752441493297,1.10043502,118780.0,118770.0,0.64682993]
[1752441495021,0.70403375,118780.0,118770.0,0.64682993]
[1752441503989,0.70403375,118780.0,118770.0,0.54194993]
[1752441515043,1.10044465,118780.0,118770.0,0.54194993]
[1752441523978,1.06794465,118780.0,118770.0,0.54410993]
[1752441530057,1.08454465,118780.0,118770.0,0.54194993]
[1752441531002,1.10054465,118780.0,118770.0,0.54194993]
[1752441535847,1.10054465,118780.0,118770.0,0.45652]
[1752441535848,1.81407275,118780.0,118770.0,0.45652]
[1752441540265,1.10054465,118780.0,118770.0,0.45652]
[1752441548261,1.07354465,118780.0,118770.0,0.45652]
[1752441550224,1.78707275,118780.0,118770.0,0.45652]
[1752441550672,1.07354465,118780.0,118770.0,0.45652]
[1752441550894,1.78707275,118780.0,118770.0,0.45652]
[1752441551796,1.7787362,118780.0,118770.0,0.45652]
[1752441555197,1.0652081,118780.0,118770.0,0.45652]
[1752441555829,1.07343127,118780.0,118770.0,0.45652]
[1752441563757,1.78695937,118780.0,118770.0,0.45652]
[1752441568124,1.7787362,118780.0,118770.0,0.45652]
[1752441571802,1.0652081,118780.0,118770.0,0.45652]
[1752441576583,1.07381533,118780.0,118770.0,0.45652]
[1752441591109,0.36028723,118780.0,118770.0,0.45652]
[1752441591297,1.07381533,118780.0,118770.0,0.45652]
[1752441601601,0.32260723,118780.0,118770.0,0.56013993]
[1752441601813,0.24644993,118780.0,118770.0,0.57772993]
[1752441602045,0.48429263,118780.0,118770.0,0.57772993]
[1752441602422,0.82429263,118780.0,118770.0,0.57772993]
[1752441607676,0.34860723,118780.0,118770.0,0.57772993]
[1752441608111,0.82429263,118780.0,118770.0,0.57772993]
[1752441612036,0.8156854,118780.0,118770.0,0.57772993]
[1752441612829,0.00205003,118790.0,118780.0,0.0315]
[1752441613022,0.57989273,118790.0,118780.0,0.37733466]
[1752441613229,0.57989273,118790.0,118780.0,0.37522993]
[1752441617146,0.81773543,118790.0,118780.0,0.37522993]
[1752441617996,0.57989273,118790.0,118780.0,0.37522993]
[1752441619958,0.81773543,118790.0,118780.0,0.37522993]
[1752441620548,0.81773543,118790.0,118780.0,0.37343993]
[1752441621548,0.57989273,118790.0,118780.0,0.37343993]
[1752441621762,0.81773543,118790.0,118780.0,0.37343993]
[1752441621978,0.81773543,118790.0,118780.0,0.35803993]
[1752441625413,0.81773543,118790.0,118780.0,0.34193993]
[1752441625594,0.82095543,118790.0,118780.0,0.34193993]
[1752441626253,0.81773543,118790.0,118780.0,0.34193993]
[1752441627469,0.82095543,118790.0,118780.0,0.34193993]
[1752441628377,0.82307543,118790.0,118780.0,0.34193993]
[1752441629595,0.82307543,118790.0,118780.0,0.44677993]
[1752441630220,0.82095543,118790.0,118780.0,0.44677993]
[1752441632992,0.82311543,118790.0,118780.0,0.44677993]
[1752441637065,0.83148721,118790.0,118780.0,0.44677993]
[1752441644001,0.83148721,118790.0,118780.0,0.64841993]
[1752441651791,0.82311543,118790.0,118780.0,0.64841993]
[1752441654863,0.83170582,118790.0,118780.0,0.64841993]
[1752441656598,0.58527273,118790.0,118780.0,0.64841993]
[1752441657918,0.58311273,118790.0,118780.0,0.64841993]
[1752441661333,0.34527003,118790.0,118780.0,0.64841993]
[1752441661508,0.58311273,118790.0,118780.0,0.64841993]
[1752441667629,0.82095543,118790.0,118780.0,0.64841993]
[1752441668790,0.58311273,118790.0,118780.0,0.64841993]
[1752441671736,0.58518273,118790.0,118780.0,0.64841993]
[1752441676501,0.57989273,118790.0,118780.0,0.64841993]
[1752441676687,0.57989273,118790.0,118780.0,0.68001993]
[1752441676902,0.57989273,118790.0,118780.0,0.66361993]
[1752441678040,0.57989273,118790.0,118780.0,0.68180993]
[1752441678041,0.34205003,118790.0,118780.0,0.68180993]
[1752441678301,0.00205003,118790.0,118780.0,0.91965263]
[1752441678519,0.00205003,118790.0,118780.0,1.11051263]
[1752441678942,0.00205003,118790.0,118780.0,0.87466993]
[1752441679159,0.00205003,118790.0,118780.0,0.87366993]
[1752441679371,0.00205003,118790.0,118780.0,0.87466993]
[1752441679620,0.00205003,118790.0,118780.0,1.11251263]
[1752441680723,0.00205003,118790.0,118780.0,1.12106882]
[1752441681691,0.05527,118830.0,118800.0,0.0328]
[1752441681940,0.03572641,118830.0,118820.0,0.08742993]
[1752441682145,0.25796911,118830.0,118820.0,0.34174993]
[1752441682351,0.25796911,118830.0,118820.0,0.67838993]
[1752441682566,0.26103911,118830.0,118820.0,0.67838993]
[1752441683588,0.60103911,118830.0,118820.0,0.67838993]
[1752441684430,0.59796911,118830.0,118820.0,0.67838993]
[1752441684662,0.60622024,118830.0,118820.0,0.67838993]
[1752441684875,0.59796911,118830.0,118820.0,0.67838993]
[1752441685301,0.59796911,118830.0,118820.0,0.98482993]
[1752441686600,0.60103911,118830.0,118820.0,0.98482993]
[1752441689602,0.59796911,118830.0,118820.0,0.98482993]
[1752441692790,0.36012641,118830.0,118820.0,1.01722993]
[1752441693026,0.59796911,118830.0,118820.0,1.01722993]
[1752441693531,0.59796911,118830.0,118820.0,1.00132993]
[1752441693776,0.59796911,118830.0,118820.0,1.00232993]
[1752441694004,0.59796911,118830.0,118820.0,1.00132993]
[1752441694214,0.59796911,118830.0,118820.0,1.00232993]
[1752441695111,0.59796911,118830.0,118820.0,0.89748993]
[1752441695330,0.59796911,118830.0,118820.0,1.00228993]
[1752441695543,0.59796911,118830.0,118820.0,0.98578993]
[1752441699075,0.36012641,118830.0,118820.0,0.98578993]
[1752441699301,0.59796911,118830.0,118820.0,0.98578993]
[1752441701467,0.59796911,118830.0,118820.0,0.88098993]
[1752441703335,0.59796911,118830.0,118820.0,0.67938993]
[1752441705071,0.60119911,118830.0,118820.0,0.67938993]
[1752441705284,0.60119911,118830.0,118820.0,0.98574993]
[1752441706772,0.60326911,118830.0,118820.0,0.98574993]
[1752441707019,0.87281181,118830.0,118820.0,0.98358993]
[1752441708705,0.87281181,118830.0,118820.0,0.87878993]
[1752441715350,0.87281181,118830.0,118820.0,0.98358993]
[1752441752105,0.39712641,118830.0,118820.0,0.98358993]
[1752441752365,0.87281181,118830.0,118820.0,0.98358993]
[1752441757542,0.39712641,118830.0,118820.0,0.98358993]
[1752441757744,0.87281181,118830.0,118820.0,0.98358993]
[1752441787069,0.63496911,118830.0,118820.0,0.98358993]
[1752441787279,0.87281181,118830.0,118820.0,0.98358993]
[1752441806393,0.87236579,118830.0,118820.0,0.98358993]
[1752441808560,0.87236579,118830.0,118820.0,0.87878993]
[1752441815400,0.87236579,118830.0,118820.0,0.98358993]
[1752441834973,0.39668039,118830.0,118820.0,0.98358993]
[1752441835203,0.87236579,118830.0,118820.0,0.98358993]
[1752441850578,0.39668039,118830.0,118820.0,0.98358993]
[1752441850793,0.87236579,118830.0,118820.0,0.98358993]
[1752441863512,0.39668039,118830.0,118820.0,0.98358993]
[1752441863722,0.87236579,118830.0,118820.0,0.98358993]
[1752441863949,0.39668039,118830.0,118820.0,0.98358993]
[1752441864099,0.87236579,118830.0,118820.0,0.98358993]
[1752441864570,0.39668039,118830.0,118820.0,0.98358993]
[1752441864745,0.87236579,118830.0,118820.0,0.98358993]
[1752441865369,0.39668039,118830.0,118820.0,0.98358993]
[1752441865594,0.87236579,118830.0,118820.0,0.98358993]
[1752441868800,0.39668039,118830.0,118820.0,0.98358993]
[1752441869056,0.87236579,118830.0,118820.0,0.98358993]
[1752441869802,0.39668039,118830.0,118820.0,0.98358993]
[1752441870017,0.87236579,118830.0,118820.0,0.98358993]
[1752441885689,0.39668039,118830.0,118820.0,0.98358993]
[1752441885901,0.87236579,118830.0,118820.0,0.98358993]
[1752441886792,0.39668039,118830.0,118820.0,0.98358993]
[1752441887047,0.87236579,118830.0,118820.0,0.98358993]
[1752441895821,0.86976098,118830.0,118820.0,0.98358993]
[1752441898807,0.86864593,118830.0,118820.0,0.98358993]
[1752441900918,0.39296053,118830.0,118820.0,0.98358993]
[1752441901133,0.86864593,118830.0,118820.0,0.98358993]
[1752441903185,0.86864593,118830.0,118820.0,0.85634993]
[1752441903656,0.86864593,118830.0,118820.0,0.72942993]
[1752441903869,0.86864593,118830.0,118820.0,0.85634993]
[1752441905349,0.86864593,118830.0,118820.0,0.72942993]
[1752441905593,0.86864593,118830.0,118820.0,0.85634993]
[1752441925607,1.34433133,118830.0,118820.0,0.72942993]
[1752441925803,1.82001673,118830.0,118820.0,0.77092]
[1752441925993,1.82001673,118830.0,118820.0,0.644]
[1752441926203,1.82001673,118830.0,118820.0,0.77092]
[1752441926435,1.82001673,118830.0,118820.0,0.644]
[1752441926633,1.82001673,118830.0,118820.0,0.643]
[1752441926836,1.78831673,118830.0,118820.0,0.32848]
[1752441927038,0.0315,118810.0,118780.0,0.32292]
[1752441927243,0.03360384,118800.0,118790.0,0.28698993]
[1752441927438,0.61674654,118800.0,118790.0,0.28698993]
[1752441927706,1.0903281,118800.0,118790.0,0.28698993]
[1752441928072,1.0903281,118800.0,118790.0,0.41390993]
[1752441931882,1.09883369,118800.0,118790.0,0.41390993]
[1752441932261,1.09883369,118800.0,118790.0,0.41490993]
[1752441934745,1.09883369,118800.0,118790.0,0.41494993]
[1752441943088,1.0903281,118800.0,118790.0,0.41494993]
[1752441951110,0.8524854,118800.0,118790.0,0.41494993]
[1752441955126,1.0903281,118800.0,118790.0,0.41494993]
[1752441955657,0.8524854,118800.0,118790.0,0.41494993]
[1752441961583,0.34,118800.0,118790.0,0.41701993]
[1752441961803,0.34,118800.0,118790.0,0.43251993]
[1752441961804,0.5778427,118800.0,118790.0,0.43251993]
[1752441962448,0.8156854,118800.0,118790.0,0.4997327]
[1752441962860,0.003,118810.0,118790.0,0.5161327]
[1752441963069,0.2378427,118800.0,118790.0,0.5179227]
[1752441963724,0.2378427,118800.0,118790.0,0.52468329]
[1752441966768,0.2378427,118800.0,118790.0,0.50828329]
[1752441971109,0.2378427,118800.0,118790.0,0.49278329]
[1752441976665,0.5114354,118800.0,118790.0,0.28798993]
[1752441976892,1.0892781,118800.0,118790.0,0.20264]
[1752441977319,1.0892781,118800.0,118790.0,0.3296]
[1752441977556,1.1145121,118800.0,118790.0,0.3296]
[1752441978034,1.1145121,118800.0,118790.0,0.20264]
[1752441978236,1.1145121,118800.0,118790.0,0.3296]
[1752441978463,1.1145121,118800.0,118790.0,0.3286]
[1752441978717,1.1155121,118800.0,118790.0,0.3286]
[1752441979175,1.1145121,118800.0,118790.0,0.3286]
[1752441979389,1.1185121,118800.0,118790.0,0.3286]
[1752441984323,2.01744091,118800.0,118790.0,0.20164]
[1752441984549,1.93201098,118800.0,118790.0,0.3286]
[1752441984991,1.21848288,118800.0,118790.0,0.3286]
[1752441985868,1.93201098,118800.0,118790.0,0.3286]
[1752441986959,1.21848288,118800.0,118790.0,0.3286]
[1752441989768,1.17548288,118800.0,118790.0,0.3286]
[1752441990045,0.029234,118800.0,118790.0,0.41607993]
[1752441990260,0.029234,118800.0,118790.0,0.45011993]
[1752441990261,0.2418427,118800.0,118790.0,0.45011993]
[1752441990479,0.2418427,118800.0,118790.0,0.5173327]
[1752441991139,0.32091028,118800.0,118790.0,0.5173327]
[1752441991820,0.66091028,118800.0,118790.0,0.5173327]
[1752441992514,0.98289056,118800.0,118790.0,0.45564]
[1752441992747,0.98289056,118800.0,118790.0,0.32864]
[1752441992973,1.01519056,118800.0,118790.0,0.32864]
[1752441995296,1.01519056,118800.0,118790.0,0.20164]
[1752441995513,1.01519056,118800.0,118790.0,0.32864]
[1752441996368,1.04042556,118800.0,118790.0,0.32864]
[1752441996781,0.99742556,118800.0,118790.0,0.32864]
[1752441997008,1.03642556,118800.0,118790.0,0.32864]
[1752441997646,0.027225,118800.0,118790.0,0.33387]
[1752441997859,0.34214528,118800.0,118790.0,0.41929993]
[1752441998074,0.34214528,118800.0,118790.0,0.43579993]
[1752441998338,0.31691028,118800.0,118790.0,0.43579993]
[1752441999265,0.31691028,118800.0,118790.0,0.45149993]
[1752442001754,0.65691028,118800.0,118790.0,0.45149993]
[1752442008771,0.36547081,118830.0,118800.0,0.0163]
[1752442008989,0.31901412,118820.0,118810.0,0.35812993]
[1752442009202,0.65691028,118820.0,118810.0,0.36017993]
[1752442011783,0.04351176,118830.0,118810.0,0.36117993]
[1752442011784,0.01596053,118830.0,118810.0,0.36117993]
[1752442012002,0.01596053,118830.0,118820.0,0.0328]
[1752442012238,0.01596053,118830.0,118820.0,0.12345993]
[1752442012688,0.01806437,118830.0,118820.0,0.12345993]
[1752442013119,0.33497465,118830.0,118820.0,0.12345993]
[1752442013330,0.33287081,118830.0,118820.0,0.12345993]
[1752442013817,0.33487081,118830.0,118820.0,0.12345993]
[1752442016605,0.01796053,118830.0,118820.0,0.12345993]
[1752442017043,0.01796053,118830.0,118820.0,0.22829993]
[1752442017260,0.02006437,118830.0,118820.0,0.22829993]
[1752442018570,0.01806437,118830.0,118820.0,0.22829993]
[1752442018860,0.01806437,118830.0,118820.0,0.22929993]
[1752442020233,0.33497465,118830.0,118820.0,0.22929993]
[1752442020442,0.70968081,118830.0,118820.0,0.10584]
[1752442020612,0.70968081,118830.0,118820.0,0.23292]
[1752442020817,0.73490781,118830.0,118820.0,0.23292]
[1752442021444,0.74944866,118830.0,118820.0,0.10584]
[1752442021653,0.74944866,118830.0,118820.0,0.23196]
[1752442021860,0.73690781,118830.0,118820.0,0.43356]
[1752442022071,0.73690781,118830.0,118820.0,0.30644]
[1752442022277,0.73690781,118830.0,118820.0,0.43356]
[1752442022491,1.15378887,118830.0,118820.0,0.30644]
[1752442022721,1.17319493,118830.0,118820.0,0.30644]
[1752442022948,1.17319493,118830.0,118820.0,0.4336]
[1752442023626,1.19120113,118830.0,118820.0,0.4336]
[1752442024648,1.18920113,118830.0,118820.0,0.4336]
[1752442024850,1.19120113,118830.0,118820.0,0.30644]
[1752442025087,1.19520113,118830.0,118820.0,0.43368]
[1752442025293,1.19320113,118830.0,118820.0,0.43368]
[1752442025624,1.19620113,118830.0,118820.0,0.43368]
[1752442025809,1.19220113,118830.0,118820.0,0.43368]
[1752442026014,1.19320113,118830.0,118820.0,0.43368]
[1752442026448,1.19720113,118830.0,118820.0,0.43368]
[1752442026657,1.19720113,118830.0,118820.0,0.32884]
[1752442026869,1.19720113,118830.0,118820.0,0.2016]
[1752442027083,1.24720113,118830.0,118820.0,0.3288]
[1752442029157,1.22779507,118830.0,118820.0,0.3288]
[1752442030317,0.91088479,118830.0,118820.0,0.3288]
[1752442031140,1.22779507,118830.0,118820.0,0.3288]
[1752442035708,0.91088479,118830.0,118820.0,0.3288]
[1752442036360,1.22779507,118830.0,118820.0,0.3288]
[1752442036587,0.54397451,118830.0,118820.0,0.3288]
[1752442036807,0.84287859,118830.0,118820.0,0.3288]
[1752442037020,0.86088479,118830.0,118820.0,0.3288]
[1752442037237,0.860883,118830.0,118820.0,0.3288]
[1752442038244,0.84287859,118830.0,118820.0,0.3288]
[1752442040251,0.72584866,118830.0,118820.0,0.3288]
[1752442043926,0.71130781,118830.0,118820.0,0.3288]
[1752442045640,0.71130781,118830.0,118820.0,0.33076]
[1752442046677,0.71130781,118830.0,118820.0,0.3288]
[1752442047720,0.39439753,118830.0,118820.0,0.3288]
[1752442047938,0.71130781,118830.0,118820.0,0.33076]
[1752442048274,0.72627958,118830.0,118820.0,0.33076]
[1752442048486,0.38414958,118830.0,118820.0,0.33391]
[1752442048687,0.70822781,118830.0,118820.0,0.33391]
[1752442049134,0.38628038,118830.0,118820.0,0.33391]
[1752442049354,0.70822781,118830.0,118820.0,0.33391]
[1752442049562,0.72523038,118830.0,118820.0,0.33076]
[1752442049744,0.72123038,118830.0,118820.0,0.33076]
[1752442049964,0.72823038,118830.0,118820.0,0.33076]
[1752442050246,0.72823038,118830.0,118820.0,0.3288]
[1752442051112,0.4437201,118830.0,118820.0,0.3288]
[1752442051319,0.70722781,118830.0,118820.0,0.33408]
[1752442051528,0.70509781,118830.0,118820.0,0.34938]
[1752442057046,0.70509781,118830.0,118820.0,0.36468]
[1752442059158,0.70509781,118830.0,118820.0,0.34938]
[1752442060266,0.70509781,118830.0,118820.0,0.33408]
[1752442061778,0.70721781,118830.0,118820.0,0.33408]
[1752442063774,0.70721781,118830.0,118820.0,0.33084]
[1752442066771,0.71038781,118830.0,118820.0,0.3288]
[1752442070867,0.70829637,118830.0,118820.0,0.3288]
[1752442074820,0.8249263,118830.0,118820.0,0.3288]
[1752442075031,0.85754782,118830.0,118820.0,0.3288]
[1752442077141,0.88014033,118830.0,118820.0,0.3288]
[1752442077367,0.85754782,118830.0,118820.0,0.3288]
[1752442086232,0.90799782,118830.0,118820.0,0.3288]
[1752442086450,0.85754782,118830.0,118820.0,0.3288]
[1752442088713,0.85753204,118830.0,118820.0,0.3288]
[1752442098877,0.85753204,118830.0,118820.0,0.20164]
[1752442099062,1.25376895,118830.0,118820.0,0.20164]
[1752442100100,1.25376895,118830.0,118820.0,0.45636]
[1752442104386,1.27635006,118830.0,118820.0,0.45636]
[1752442106283,1.25376895,118830.0,118820.0,0.45636]
[1752442121944,1.01605322,118830.0,118820.0,0.45636]
[1752442124538,1.00035322,118830.0,118820.0,0.45636]
[1752442131444,1.00039258,118830.0,118820.0,0.45636]
[1752442137739,1.01559258,118830.0,118820.0,0.45636]
[1752442138069,1.00039258,118830.0,118820.0,0.45636]
[1752442143412,1.23810831,118830.0,118820.0,0.45636]
[1752442149338,1.00039258,118830.0,118820.0,0.45636]
[1752442150300,0.98228833,118830.0,118820.0,0.45636]
[1752442150521,1.00039329,118830.0,118820.0,0.45636]
[1752442154909,0.98489329,118830.0,118820.0,0.45636]
[1752442163051,1.00139329,118830.0,118820.0,0.45636]
[1752442163493,1.23910902,118830.0,118820.0,0.45636]
[1752442165643,1.00139329,118830.0,118820.0,0.45636]
[1752442170110,1.01769329,118830.0,118820.0,0.45636]
[1752442170327,1.25540902,118830.0,118820.0,0.45636]
[1752442180935,1.35852583,118830.0,118820.0,0.20164]
[1752442181188,2.09430422,118830.0,118820.0,0.32872]
[1752442181394,2.16530115,118830.0,118820.0,0.32872]
[1752442182237,2.15744429,118830.0,118820.0,0.32872]
[1752442183493,2.16529534,118830.0,118820.0,0.32872]
[1752442184274,2.11529534,118830.0,118820.0,0.32872]
[1752442184473,2.11217853,118830.0,118820.0,0.32872]
[1752442184673,2.06217853,118830.0,118820.0,0.32872]
[1752442184995,2.11217853,118830.0,118820.0,0.32872]
[1752442185853,2.11217516,118830.0,118820.0,0.32872]
[1752442186470,2.06217516,118830.0,118820.0,0.32872]
[1752442186680,2.11217516,118830.0,118820.0,0.32872]
[1752442186877,2.04654396,118830.0,118820.0,0.32872]
[1752442187076,2.07177996,118830.0,118820.0,0.32872]
[1752442188091,2.02177996,118830.0,118820.0,0.32872]
[1752442188322,2.07177996,118830.0,118820.0,0.32872]
[1752442188736,2.02177996,118830.0,118820.0,0.32872]
[1752442188895,2.07177996,118830.0,118820.0,0.32872]
[1752442189381,2.02177996,118830.0,118820.0,0.32872]
[1752442189579,2.07177996,118830.0,118820.0,0.32872]
[1752442190827,2.02177996,118830.0,118820.0,0.32872]
[1752442191071,2.07177996,118830.0,118820.0,0.32872]
[1752442191294,2.02177996,118830.0,118820.0,0.32872]